[Event "Fagernes Chess GM-Swiss 2024"]
[Site "Fagernes"]
[Date "2024.03.28"]
[Round "6.26"]
[White "Kreken, Eivind Grunt"]
[Black "Yaniv, Yuval"]
[Result "1-0"]
[ECO "A43"]
[WhiteElo "2215"]
[BlackElo "2368"]
[Annotator "RC"]
[PlyCount "77"]
[EventDate "2024.03.25"]
[EventType "swiss"]
[EventCountry "NOR"]
[SourceTitle "playchess.com"]
[Source "ChessBase"]
[SourceQuality "1"]
[TimeControl "40/6000+30:2400+30"]

1. Nf3 {[%emt 1:13:48]} Nf6 {[%emt 0:00:22]} 2. g3 {[%emt 0:00:31]} g6 {[%emt 0:00:21]} 3. Bg2 {[%emt 0:00:41]} Bg7 {[%emt 0:00:10]} 4. O-O {[%emt 0:00:38]} O-O {[%emt 0:00:14]} 5. d4 {[%emt 0:01:26]} d6 {[%emt 0:00:17]} 6. Nc3 {[%emt 0:00:38]} Na6 {[%emt 0:06:21]} 7. e4 {[%emt 0:02:52]} c5 {[%emt 0:00:42]} 8. d5 {[%emt 0:02:19]} Nc7 {[%emt 0:04:51]} 9. a4 {[%emt 0:03:05]} a6 {[%emt 0:01:30]} 10. Qd3 {[%emt 0:06:17]} Rb8 {[%emt 0:02:55]} 11. a5 {[%emt 0:01:01]} Nb5 {[%emt 0:03:16]} 12. Nxb5 {[%emt 0:10:30]} axb5 {[%emt 0:00:12]} 13. Qxb5 {[%emt 0:03:30]} Nxe4 {[%emt 0:00:57]} 14. Re1 {[%emt 0:16:42]} Nf6 {[%emt 0:00:48]} 15. Nd2 {[%emt 0:01:48]} Bf5 {[%emt 0:04:02]} 16. c3 {[%emt 0:02:26]} Re8 {[%emt 0:20:11]} 17. Nc4 {[%emt 0:07:05]} Bd3 {[%emt 0:09:30]} 18. Re3 {[%emt 0:19:19]} Bxc4 {[%emt 0:02:31]} 19. Qxc4 {[%emt 0:00:02]} b5 {[%emt 0:02:08]} 20. axb6 {[%emt 0:00:47]} Qxb6 {[%emt 0:01:28]} 21. Re2 {[%emt 0:03:59]} Qb5 {[%emt 0:12:10]} 22. Qxb5 {[%emt 0:00:51]} Rxb5 {[%emt 0:02:06]} 23. Ra7 {[%emt 0:00:37]} Kf8 {[%emt 0:02:16]} 24. h3 {[%emt 0:04:13]} c4 {[%emt 0:08:22]} 25. Rc7 {[%emt 0:02:10]} Nxd5 {[%emt 0:02:37]} 26. Rxc4 {[%emt 0:00:18]} Reb8 {[%emt 0:02:29]} 27. Kh2 {[%emt 0:02:55]} Nb6 {[%emt 0:06:57]} 28. Rc7 {[%emt 0:00:28]} Bf6 {[%emt 0:00:07]} 29. Bh6+ {[%emt 0:08:50]} Kg8 {[%emt 0:00:09]} 30. b4 {[%emt 0:00:57]} d5 {[%emt 0:05:56]} 31. Bf4 {[%emt 0:01:23]} Rc8 {[%emt 0:01:31]} 32. Rxc8+ Nxc8 33. Ra2 {[%emt 0:00:22]} Nb6 {[%emt 0:02:45]} 34. Ra5 {[%emt 0:00:46]} Rxa5 {[%emt 0:00:17]} 35. bxa5 {[%emt 0:00:06]} Nc4 {[%emt 0:03:26]} 36. a6 {[%emt 0:01:01]} e6 {[%emt 0:00:09]} 37. a7 {[%emt 0:00:10]} Nb6 {[%emt 0:00:02]} 38. Be3 {[%emt 0:01:05]} Na8 {[%emt 0:00:05]} 39. c4 {[%emt 0:00:55]} 1-0

[Event "Fagernes Chess GM-Swiss 2024"]
[Site "Fagernes"]
[Date "2024.03.28"]
[Round "6.27"]
[White "Stark, John"]
[Black "Moksh Amit Doshi"]
[Result "0-1"]
[ECO "A13"]
[WhiteElo "1947"]
[BlackElo "2353"]
[Annotator "RC"]
[PlyCount "59"]
[EventDate "2024.03.25"]
[EventType "swiss"]
[EventCountry "NOR"]
[SourceTitle "playchess.com"]
[Source "ChessBase"]
[SourceQuality "1"]
[TimeControl "40/6000+30:2400+30"]

1. c4 {[%emt 0:00:02]} e6 {[%emt 0:02:56]} 2. Nf3 {[%emt 0:01:58]} d5 {[%emt 0:00:08]} 3. e3 {[%emt 0:01:22]} Nf6 {[%emt 0:00:07]} 4. b3 {[%emt 0:04:07]} c5 {[%emt 0:00:09]} 5. Bb2 {[%emt 0:00:35]} Nc6 {[%emt 0:00:07]} 6. cxd5 {[%emt 0:02:36]} exd5 {[%emt 0:00:27]} 7. Bb5 {[%emt 0:00:10]} Bd6 {[%emt 0:00:07]} 8. Ne5 {[%emt 0:05:35]} Qb6 {[%emt 0:08:43]} 9. Bxc6+ {[%emt 0:11:31]} bxc6 {[%emt 0:00:08]} 10. O-O {[%emt 0:00:26]} O-O {[%emt 0:01:21]} 11. f4 {[%emt 0:03:19]} c4 {[%emt 0:01:05]} 12. Nc3 {[%emt 0:02:45]} cxb3 {[%emt 0:00:50]} 13. Na4 {[%emt 0:01:34]} Qb5 {[%emt 0:05:13]} 14. axb3 {[%emt 0:01:13]} Rb8 {[%emt 0:01:41]} 15. Qc2 {[%emt 0:06:23]} Ba6 {[%emt 0:07:04]} 16. Rfc1 {[%emt 0:15:03]} Rfc8 {[%emt 0:02:55]} 17. Qf5 {[%emt 0:06:49]} Bf8 {[%emt 0:07:31]} 18. g4 {[%emt 0:15:03]} Rc7 {[%emt 0:02:56]} 19. Nc3 {[%emt 0:04:06]} Qb6 {[%emt 0:06:03]} 20. Na4 {[%emt 0:07:56]} Qxb3 {[%emt 0:04:00]} 21. Rxc6 {[%emt 0:05:08]} Bd3 {[%emt 0:06:22]} 22. Qg5 {[%emt 0:05:02]} Ne4 {[%emt 0:02:06]} 23. Qh5 {[%emt 0:02:26]} Rbc8 {[%emt 0:00:31]} 24. Rxc7 {[%emt 0:04:17]} Rxc7 {[%emt 0:00:07]} 25. Bc3 {[%emt 0:01:24]} d4 {[%emt 0:06:46]} 26. Ba5 {[%emt 0:00:26]} Rb7 {[%emt 0:06:29]} 27. exd4 {[%emt 0:01:40]} Bb1 {[%emt 0:02:39]} 28. g5 {[%emt 0:00:29]} Bb4 {[%emt 0:05:03]} 29. Bxb4 {[%emt 0:00:55]} Qxb4 {[%emt 0:00:07]} 30. Nf3 {[%emt 0:00:00]} 0-1

[Event "Fagernes Chess GM-Swiss 2024"]
[Site "Fagernes"]
[Date "2024.03.28"]
[Round "6.28"]
[White "Andersen, Morten"]
[Black "Nordahl, Helge"]
[Result "1-0"]
[ECO "E92"]
[WhiteElo "2178"]
[BlackElo "2330"]
[Annotator "RC"]
[PlyCount "91"]
[EventDate "2024.03.25"]
[EventType "swiss"]
[EventCountry "NOR"]
[SourceTitle "playchess.com"]
[Source "ChessBase"]
[SourceQuality "1"]
[TimeControl "40/6000+30:2400+30"]

1. d4 {[%emt 0:00:04]} Nf6 {[%emt 0:00:11]} 2. c4 {[%emt 0:03:18]} g6 {[%emt 0:00:04]} 3. Nc3 {[%emt 0:00:08]} Bg7 {[%emt 0:00:04]} 4. e4 {[%emt 0:00:20]} d6 {[%emt 0:00:03]} 5. Nf3 {[%emt 0:00:10]} O-O {[%emt 0:00:08]} 6. h3 {[%emt 0:00:16]} e5 {[%emt 0:00:16]} 7. d5 {[%emt 0:00:27]} a5 {[%emt 0:00:08]} 8. Bg5 {[%emt 0:00:43]} Na6 {[%emt 0:01:45]} 9. Be2 {[%emt 0:09:16]} Qe8 {[%emt 0:02:51]} 10. Nd2 {[%emt 0:01:40]} h6 {[%emt 0:02:28]} 11. Be3 {[%emt 0:10:03]} Nh7 {[%emt 0:02:52]} 12. O-O {[%emt 0:15:14]} Bd7 {[%emt 0:06:19]} 13. Bg4 {[%emt 0:02:58]} f5 {[%emt 0:02:08]} 14. exf5 {[%emt 0:00:09]} gxf5 {[%emt 0:00:03]} 15. Bh5 {[%emt 0:00:11]} Qe7 {[%emt 0:03:00]} 16. f4 {[%emt 0:01:58]} e4 {[%emt 0:06:19]} 17. Kh2 {[%emt 0:06:20]} Nc5 {[%emt 0:05:35]} 18. Nb3 {[%emt 0:03:55]} Nd3 {[%emt 0:14:59]} 19. Qd2 {[%emt 0:02:13]} a4 {[%emt 0:07:22]} 20. Nd4 {[%emt 0:05:49]} Bf6 {[%emt 0:04:28]} 21. g4 {[%emt 0:05:25]} fxg4 {[%emt 0:03:33]} 22. Rg1 {[%emt 0:08:24]} Kh8 {[%emt 0:02:34]} 23. Bxg4 {[%emt 0:01:47]} Bxg4 {[%emt 0:04:04]} 24. Rxg4 {[%emt 0:01:18]} Rg8 {[%emt 0:01:10]} 25. Nf5 {[%emt 0:04:57]} Qd7 {[%emt 0:02:27]} 26. Nxh6 {[%emt 0:01:52]} Rxg4 {[%emt 0:00:19]} 27. Nxg4 {[%emt 0:00:27]} Qf5 {[%emt 0:08:17]} 28. Nxf6 {[%emt 0:03:07]} Nxf6 {[%emt 0:01:06]} 29. Rg1 {[%emt 0:01:19]} Rg8 {[%emt 0:01:19]} 30. Rxg8+ {[%emt 0:00:48]} Kxg8 {[%emt 0:03:33]} 31. Nxa4 {[%emt 0:03:33]} b5 {[%emt 0:01:52]} 32. Nc3 {[%emt 0:04:26]} bxc4 {[%emt 0:01:04]} 33. Qg2+ {[%emt 0:00:46]} Kf7 {[%emt 0:00:37]} 34. Qg5 {[%emt 0:00:10]} Qg6 {[%emt 0:00:38]} 35. Bd4 {[%emt 0:02:36]} Nxb2 {[%emt 0:06:43]} 36. a4 {[%emt 0:03:25]} Nd3 {[%emt 0:03:43]} 37. a5 {[%emt 0:01:49]} Nb4 {[%emt 0:00:35]} 38. Qxg6+ {[%emt 0:01:41]} Kxg6 {[%emt 0:00:05]} 39. Bxf6 {[%emt 0:01:07]} Kxf6 {[%emt 0:00:01]} 40. h4 {[%emt 0:01:38]} c6 {[%emt 0:08:33]} 41. dxc6 {[%emt 0:43:55]} Nxc6 {[%emt 0:40:11]} 42. a6 {[%emt 0:00:30]} Ke6 {[%emt 0:04:30]} 43. h5 {[%emt 0:00:00]} d5 {[%emt 0:00:00]} 44. h6 {[%emt 0:00:00]} Kf6 {[%emt 0:00:00]} 45. Nxd5+ {[%emt 0:00:00]} Kg6 {[%emt 0:00:00]} 46. Ne7+ {[%emt 0:00:00]} 1-0

[Event "Fagernes Chess GM-Swiss 2024"]
[Site "Fagernes"]
[Date "2024.03.28"]
[Round "6.29"]
[White "Avetisyan, Ani"]
[Black "Hedman, Erik"]
[Result "1/2-1/2"]
[ECO "E15"]
[WhiteElo "1840"]
[BlackElo "2311"]
[Annotator "RC"]
[PlyCount "168"]
[EventDate "2024.03.25"]
[EventType "swiss"]
[EventCountry "NOR"]
[SourceTitle "playchess.com"]
[Source "ChessBase"]
[SourceQuality "1"]
[TimeControl "40/6000+30:2400+30"]

1. d4 {[%emt 0:00:03]} Nf6 {[%emt 0:00:04]} 2. c4 {[%emt 0:00:06]} e6 {[%emt 0:00:31]} 3. Nf3 {[%emt 0:00:15]} b6 {[%emt 0:00:31]} 4. g3 {[%emt 0:00:17]} Ba6 {[%emt 0:00:30]} 5. Qa4 {[%emt 0:00:06]} c5 {[%emt 0:00:52]} 6. Bg2 {[%emt 0:01:01]} Bb7 {[%emt 0:00:13]} 7. dxc5 {[%emt 0:00:05]} bxc5 {[%emt 0:00:34]} 8. O-O {[%emt 0:00:20]} Be7 {[%emt 0:01:41]} 9. Nc3 {[%emt 0:00:36]} O-O {[%emt 0:00:07]} 10. Rd1 {[%emt 0:00:06]} Qb6 {[%emt 0:00:57]} 11. Bf4 {[%emt 0:01:23]} Rd8 {[%emt 0:01:03]} 12. Rd2 {[%emt 0:01:24]} d6 {[%emt 0:01:14]} 13. Rad1 {[%emt 0:01:37]} h6 {[%emt 0:00:35]} 14. Qb5 {[%emt 0:01:03]} Ne8 {[%emt 0:01:25]} 15. Qxb6 {[%emt 0:01:59]} axb6 {[%emt 0:00:48]} 16. b3 {[%emt 0:00:31]} g5 {[%emt 0:00:54]} 17. Be3 {[%emt 0:01:32]} Nd7 {[%emt 0:16:04]} 18. h4 {[%emt 0:06:18]} g4 {[%emt 0:02:03]} 19. Ne1 {[%emt 0:01:39]} Bxg2 {[%emt 0:00:48]} 20. Nxg2 {[%emt 0:03:13]} Kh7 {[%emt 0:03:01]} 21. Bf4 {[%emt 0:10:55]} Ndf6 {[%emt 0:13:05]} 22. e4 {[%emt 0:05:00]} Nh5 {[%emt 0:03:44]} 23. Be3 {[%emt 0:03:49]} Nhf6 {[%emt 0:03:20]} 24. Bf4 {[%emt 0:00:22]} Nh5 {[%emt 0:00:21]} 25. Be3 {[%emt 0:00:56]} Nhf6 {[%emt 0:03:25]} 26. Kf1 {[%emt 0:08:03]} Nc7 {[%emt 0:02:05]} 27. Nf4 {[%emt 0:02:16]} e5 {[%emt 0:12:39]} 28. Nfd5 {[%emt 0:03:26]} Ncxd5 {[%emt 0:02:24]} 29. Nxd5 {[%emt 0:01:30]} Nxd5 {[%emt 0:00:06]} 30. exd5 {[%emt 0:01:07]} Ra3 {[%emt 0:00:25]} 31. Rc2 {[%emt 0:02:58]} Rda8 {[%emt 0:00:15]} 32. Rdd2 {[%emt 0:00:04]} h5 {[%emt 0:05:21]} 33. Re2 {[%emt 0:05:16]} Bf8 {[%emt 0:01:43]} 34. Bc1 {[%emt 0:01:53]} R3a7 {[%emt 0:00:04]} 35. a4 {[%emt 0:02:02]} Bh6 {[%emt 0:00:09]} 36. Bxh6 {[%emt 0:09:48]} Kxh6 {[%emt 0:01:12]} 37. f3 {[%emt 0:01:27]} gxf3 {[%emt 0:14:00]} 38. Re3 {[%emt 0:01:46]} f5 {[%emt 0:00:06]} 39. Rxf3 {[%emt 0:00:04]} Rf8 {[%emt 0:00:52]} 40. Rcf2 {[%emt 0:01:31]} Raf7 {[%emt 0:00:47]} 41. Ke2 {[%emt 0:42:17]} Kg6 {[%emt 0:40:35]} 42. Ke3 {[%emt 0:03:37]} Rf6 {[%emt 0:00:06]} 43. Rf1 {[%emt 0:00:49]} R8f7 {[%emt 0:00:08]} 44. R1f2 {[%emt 0:05:54]} Kg7 {[%emt 0:00:14]} 45. Rg2 {[%emt 0:02:03]} Kf8 {[%emt 0:00:12]} 46. Rgf2 {[%emt 0:03:30]} Ke8 {[%emt 0:00:44]} 47. Rf1 {[%emt 0:02:14]} Kd8 {[%emt 0:01:21]} 48. R3f2 {[%emt 0:08:33]} Kc7 {[%emt 0:01:36]} 49. Rf3 {[%emt 0:01:20]} Kb7 {[%emt 0:03:57]} 50. Kd2 {[%emt 0:01:41]} Ka6 {[%emt 0:00:48]} 51. Kc3 {[%emt 0:01:52]} Ka5 {[%emt 0:02:04]} 52. R1f2 {[%emt 0:02:52]} Rg7 {[%emt 0:00:00]} 53. Rxf5 {[%emt 0:00:00]} Rxg3+ {[%emt 0:00:00]} 54. Kc2 {[%emt 0:00:00]} Rxf5 {[%emt 0:00:00]} 55. Rxf5 {[%emt 0:00:00]} Kb4 {[%emt 0:00:00]} 56. Rxh5 {[%emt 0:00:00]} Rc3+ {[%emt 0:00:00]} 57. Kd2 {[%emt 0:00:00]} Rxb3 {[%emt 0:00:00]} 58. Rh6 {[%emt 0:00:00]} Kxc4 {[%emt 0:00:00]} 59. Rxd6 {[%emt 0:00:00]} Kd4 {[%emt 0:08:57]} 60. Kc2 {[%emt 0:00:00]} c4 {[%emt 0:00:40]} 61. h5 {[%emt 0:00:00]} Kc5 {[%emt 0:00:58]} 62. Rd8 {[%emt 0:00:00]} Rh3 {[%emt 0:00:13]} 63. d6 {[%emt 0:00:00]} Rh2+ {[%emt 0:00:52]} 64. Kc3 {[%emt 0:00:00]} Rh3+ {[%emt 0:00:04]} 65. Kc2 {[%emt 0:00:00]} Rxh5 {[%emt 0:00:05]} 66. d7 {[%emt 0:00:00]} Rh2+ {[%emt 0:00:09]} 67. Kc3 {[%emt 0:00:00]} Rh3+ {[%emt 0:00:04]} 68. Kc2 {[%emt 0:00:00]} Kd6 {[%emt 0:00:11]} 69. Re8 {[%emt 0:00:00]} Kxd7 {[%emt 0:00:05]} 70. Rxe5 {[%emt 0:00:00]} Ra3 {[%emt 0:01:55]} 71. Rb5 {[%emt 0:00:00]} Kc6 {[%emt 0:00:07]} 72. Rb4 {[%emt 0:00:00]} Kc5 {[%emt 0:00:04]} 73. Rb5+ {[%emt 0:00:00]} Kd4 {[%emt 0:00:10]} 74. Rxb6 {[%emt 0:00:00]} Ra2+ {[%emt 0:00:13]} 75. Kc1 {[%emt 0:00:00]} Kc3 {[%emt 0:01:27]} 76. Kb1 {[%emt 0:00:00]} Rxa4 {[%emt 0:00:27]} 77. Rh6 {[%emt 0:00:00]} Rb4+ {[%emt 0:00:44]} 78. Kc1 {[%emt 0:00:00]} Kb3 {[%emt 0:00:19]} 79. Rh3+ {[%emt 0:01:18]} c3 {[%emt 0:00:05]} 80. Rh8 {[%emt 0:00:01]} Rb7 {[%emt 0:00:23]} 81. Rc8 {[%emt 0:00:41]} Rb6 {[%emt 0:00:04]} 82. Rh8 {[%emt 0:00:15]} Rb7 {[%emt 0:00:06]} 83. Rc8 {[%emt 0:00:04]} Rb6 {[%emt 0:00:04]} 84. Rh8 {[%emt 0:00:04]} Rb7 {[%emt 0:00:04]} 1/2-1/2

[Event "Fagernes Chess GM-Swiss 2024"]
[Site "Fagernes"]
[Date "2024.03.28"]
[Round "6.30"]
[White "Shehzad, Shazil"]
[Black "Eliseev, Sergey"]
[Result "1-0"]
[ECO "A13"]
[WhiteElo "2301"]
[BlackElo "2131"]
[Annotator "RC"]
[PlyCount "115"]
[EventDate "2024.03.25"]
[EventType "swiss"]
[EventCountry "NOR"]
[SourceTitle "playchess.com"]
[Source "ChessBase"]
[SourceQuality "1"]
[TimeControl "40/6000+30:2400+30"]

1. c4 {[%emt 0:01:14]} e6 {[%emt 0:10:28]} 2. g3 {[%emt 0:00:16]} d5 {[%emt 0:00:54]} 3. Nf3 {[%emt 0:00:09]} b6 {[%emt 0:01:43]} 4. cxd5 {[%emt 0:00:05]} exd5 {[%emt 0:03:10]} 5. d4 {[%emt 0:00:51]} Nf6 {[%emt 0:03:20]} 6. Nc3 {[%emt 0:07:50]} Bb7 {[%emt 0:01:34]} 7. Bg2 {[%emt 0:01:03]} Bd6 {[%emt 0:00:30]} 8. O-O {[%emt 0:01:51]} a6 {[%emt 0:03:27]} 9. Qb3 {[%emt 0:02:55]} Qe7 {[%emt 0:02:44]} 10. Ne5 {[%emt 0:08:37]} Qe6 {[%emt 0:18:02]} 11. Bg5 {[%emt 0:10:00]} Ne4 {[%emt 0:04:58]} 12. Nxe4 {[%emt 0:02:17]} dxe4 {[%emt 0:01:12]} 13. Qxe6+ {[%emt 0:06:07]} fxe6 {[%emt 0:00:18]} 14. Nc4 {[%emt 0:04:51]} h6 {[%emt 0:01:18]} 15. Be3 {[%emt 0:20:46]} Nd7 {[%emt 0:00:40]} 16. Rac1 {[%emt 0:02:27]} Ke7 {[%emt 0:02:51]} 17. Nxd6 {[%emt 0:01:59]} cxd6 {[%emt 0:00:03]} 18. Rc7 {[%emt 0:00:43]} Bd5 {[%emt 0:10:47]} 19. Rfc1 {[%emt 0:02:12]} Rhf8 {[%emt 0:04:28]} 20. h3 {[%emt 0:03:11]} Rab8 {[%emt 0:03:19]} 21. g4 {[%emt 0:05:10]} Rb7 {[%emt 0:06:54]} 22. R7c2 {[%emt 0:06:18]} g5 {[%emt 0:01:57]} 23. Kh2 {[%emt 0:01:00]} Nf6 {[%emt 0:01:43]} 24. b3 {[%emt 0:02:21]} Kd7 {[%emt 0:00:55]} 25. Kg3 {[%emt 0:01:23]} Rg8 {[%emt 0:01:29]} 26. Kh2 {[%emt 0:03:12]} a5 {[%emt 0:00:14]} 27. f4 {[%emt 0:00:53]} exf3 {[%emt 0:01:20]} 28. exf3 {[%emt 0:00:24]} b5 {[%emt 0:02:10]} 29. Kg3 {[%emt 0:01:44]} a4 {[%emt 0:11:15]} 30. bxa4 {[%emt 0:00:11]} bxa4 {[%emt 0:00:05]} 31. Bf1 {[%emt 0:00:16]} Ra8 {[%emt 0:03:15]} 32. Be2 {[%emt 0:03:22]} a3 {[%emt 0:03:34]} 33. h4 {[%emt 0:00:37]} gxh4+ {[%emt 0:00:14]} 34. Kxh4 {[%emt 0:00:05]} Ng8 {[%emt 0:00:25]} 35. Bf4 {[%emt 0:01:57]} Raa7 {[%emt 0:01:15]} 36. Bc4 {[%emt 0:05:36]} Bxf3 {[%emt 0:01:56]} 37. Rf1 {[%emt 0:01:16]} Be4 {[%emt 0:00:26]} 38. Rcf2 {[%emt 0:01:45]} Rb2 {[%emt 0:02:24]} 39. Bc1 {[%emt 0:01:05]} Rxf2 {[%emt 0:00:30]} 40. Rxf2 {[%emt 0:00:18]} Ke7 {[%emt 0:02:10]} 41. Re2 {[%emt 0:15:54]} d5 {[%emt 0:00:06]} 42. Bb3 {[%emt 0:01:26]} Kf7 {[%emt 0:04:00]} 43. Rf2+ {[%emt 0:02:56]} Kg7 {[%emt 0:01:12]} 44. Bf4 {[%emt 0:01:27]} Ne7 {[%emt 0:16:01]} 45. Be5+ {[%emt 0:02:00]} Kg8 {[%emt 0:00:56]} 46. Bd6 {[%emt 0:03:31]} Nc6 {[%emt 0:03:41]} 47. Rf8+ {[%emt 0:01:46]} Kh7 {[%emt 0:01:19]} 48. Bc5 {[%emt 0:00:23]} Ra6 {[%emt 0:00:22]} 49. Re8 {[%emt 0:03:20]} Na5 {[%emt 0:01:08]} 50. Ba4 {[%emt 0:03:07]} Nc4 {[%emt 0:01:08]} 51. Bb5 {[%emt 0:01:53]} Ra5 {[%emt 0:00:36]} 52. Re7+ {[%emt 0:01:12]} Kg8 {[%emt 0:00:24]} 53. Bd7 {[%emt 0:00:52]} e5 {[%emt 0:04:31]} 54. Be6+ {[%emt 0:00:42]} Kh8 {[%emt 0:00:26]} 55. Kh5 {[%emt 0:00:58]} Ra8 {[%emt 0:05:23]} 56. Kxh6 {[%emt 0:00:41]} Na5 {[%emt 0:03:38]} 57. Rh7+ {[%emt 0:02:48]} Bxh7 {[%emt 0:00:05]} 58. Be7 {[%emt 0:00:03]} 1-0

[Event "Fagernes Chess GM-Swiss 2024"]
[Site "Fagernes"]
[Date "2024.03.28"]
[Round "6.31"]
[White "Rounaiv Rana"]
[Black "Haug, Havard"]
[Result "0-1"]
[ECO "D36"]
[WhiteElo "2099"]
[BlackElo "2341"]
[Annotator "RC"]
[PlyCount "116"]
[EventDate "2024.03.25"]
[EventType "swiss"]
[EventCountry "NOR"]
[SourceTitle "playchess.com"]
[Source "ChessBase"]
[SourceQuality "1"]
[TimeControl "40/6000+30:2400+30"]

1. d4 {[%emt 0:00:04]} d5 {[%emt 0:00:24]} 2. c4 {[%emt 0:00:05]} e6 {[%emt 0:00:04]} 3. Nc3 {[%emt 0:00:05]} Nf6 {[%emt 0:00:04]} 4. cxd5 {[%emt 0:00:06]} exd5 {[%emt 0:00:04]} 5. Bg5 {[%emt 0:00:09]} Be7 {[%emt 0:00:05]} 6. e3 {[%emt 0:00:05]} c6 {[%emt 0:00:07]} 7. Bd3 {[%emt 0:00:05]} h6 {[%emt 0:00:11]} 8. Bh4 {[%emt 0:00:07]} O-O {[%emt 0:00:11]} 9. Qc2 {[%emt 0:00:04]} Re8 {[%emt 0:00:05]} 10. Nge2 {[%emt 0:00:42]} a5 {[%emt 0:00:21]} 11. O-O {[%emt 0:05:23]} Na6 {[%emt 0:02:11]} 12. a3 {[%emt 0:00:21]} Nc7 {[%emt 0:00:07]} 13. f3 {[%emt 0:20:23]} c5 {[%emt 0:01:13]} 14. Na4 {[%emt 0:01:09]} c4 {[%emt 0:01:34]} 15. Bf5 {[%emt 0:00:16]} b5 {[%emt 0:03:46]} 16. Nac3 {[%emt 0:02:29]} Bxf5 {[%emt 0:06:05]} 17. Qxf5 {[%emt 0:00:11]} b4 {[%emt 0:00:08]} 18. axb4 {[%emt 0:06:01]} axb4 {[%emt 0:00:15]} 19. Na4 {[%emt 0:02:22]} Qd7 {[%emt 0:02:43]} 20. Qxd7 {[%emt 0:04:42]} Nxd7 {[%emt 0:00:38]} 21. Bg3 {[%emt 0:02:07]} Ne6 {[%emt 0:07:34]} 22. e4 {[%emt 0:03:45]} Ra5 {[%emt 0:01:44]} 23. exd5 {[%emt 0:08:07]} Rxd5 {[%emt 0:00:59]} 24. Rfd1 {[%emt 0:04:29]} Ra8 {[%emt 0:01:26]} 25. b3 {[%emt 0:12:54]} c3 {[%emt 0:04:50]} 26. Rac1 {[%emt 0:01:18]} Bf6 {[%emt 0:02:35]} 27. Bf2 {[%emt 0:02:52]} Bg5 {[%emt 0:04:02]} 28. Rc2 {[%emt 0:01:54]} Ra6 {[%emt 0:02:17]} 29. Nc1 {[%emt 0:17:31]} Bxc1 {[%emt 0:02:33]} 30. Rcxc1 {[%emt 0:00:16]} Rad6 {[%emt 0:03:02]} 31. Bg3 {[%emt 0:01:11]} Ra6 {[%emt 0:02:53]} 32. Bf2 {[%emt 0:00:29]} f5 {[%emt 0:00:23]} 33. Nc5 {[%emt 0:10:31]} Ndxc5 {[%emt 0:00:40]} 34. dxc5 {[%emt 0:00:07]} Rxd1+ {[%emt 0:00:06]} 35. Rxd1 {[%emt 0:00:08]} Rc6 {[%emt 0:00:18]} 36. Kf1 {[%emt 0:03:12]} Nxc5 {[%emt 0:00:10]} 37. Bxc5 {[%emt 0:00:05]} Rxc5 {[%emt 0:00:04]} 38. Ke2 {[%emt 0:00:48]} Re5+ {[%emt 0:00:40]} 39. Kf2 {[%emt 0:00:14]} Ra5 {[%emt 0:00:44]} 40. Rd4 {[%emt 0:02:20]} Ra1 {[%emt 0:00:00]} 41. Rc4 {[%emt 0:40:21]} Rb1 {[%emt 0:39:56]} 42. Ke3 {[%emt 0:01:02]} Rxb3 {[%emt 0:00:05]} 43. Kf4 {[%emt 0:00:00]} Rb2 {[%emt 0:00:00]} 44. Kxf5 {[%emt 0:00:00]} Kh7 {[%emt 0:00:00]} 45. g4 {[%emt 0:00:00]} c2 {[%emt 0:00:00]} 46. h4 {[%emt 0:00:00]} Ra2 {[%emt 0:00:00]} 47. g5 {[%emt 0:00:00]} Ra5+ {[%emt 0:00:00]} 48. Kg4 {[%emt 0:00:00]} hxg5 {[%emt 0:00:00]} 49. Rxc2 {[%emt 0:00:00]} gxh4 {[%emt 0:00:00]} 50. Kxh4 {[%emt 0:00:00]} b3 {[%emt 0:00:00]} 51. Rb2 {[%emt 0:00:00]} Rb5 {[%emt 0:00:00]} 52. Kg4 {[%emt 0:00:00]} Kg6 {[%emt 0:00:00]} 53. Kf4 {[%emt 0:00:00]} Kf6 {[%emt 0:00:00]} 54. Ke4 {[%emt 0:00:00]} Rb4+ {[%emt 0:00:00]} 55. Kd3 {[%emt 0:00:00]} Kf5 {[%emt 0:00:00]} 56. Kc3 {[%emt 0:00:00]} Rb8 {[%emt 0:00:00]} 57. Kd3 {[%emt 0:00:00]} Kf4 {[%emt 0:00:00]} 58. Ke2 {[%emt 0:00:00]} Re8+ {[%emt 0:00:00]} 0-1

[Event "Fagernes Chess GM-Swiss 2024"]
[Site "Fagernes"]
[Date "2024.03.28"]
[Round "6.32"]
[White "Oksendal, Martin"]
[Black "Melaa, Sondre"]
[Result "0-1"]
[ECO "C60"]
[WhiteElo "2086"]
[BlackElo "2285"]
[Annotator "RC"]
[PlyCount "68"]
[EventDate "2024.03.25"]
[EventType "swiss"]
[EventCountry "NOR"]
[SourceTitle "playchess.com"]
[Source "ChessBase"]
[SourceQuality "1"]
[TimeControl "40/6000+30:2400+30"]

1. e4 {[%emt 0:03:17]} e5 {[%emt 0:00:08]} 2. Nf3 {[%emt 0:00:09]} Nc6 {[%emt 0:00:08]} 3. Bb5 {[%emt 0:00:05]} Nge7 {[%emt 0:00:11]} 4. Nc3 {[%emt 0:00:32]} Ng6 {[%emt 0:00:16]} 5. d4 {[%emt 0:02:57]} exd4 {[%emt 0:00:14]} 6. Nxd4 {[%emt 0:02:04]} Nxd4 {[%emt 0:00:10]} 7. Qxd4 {[%emt 0:00:04]} c6 {[%emt 0:00:10]} 8. Be2 {[%emt 0:03:50]} Qb6 {[%emt 0:00:21]} 9. Qd3 {[%emt 0:06:56]} Be7 {[%emt 0:00:24]} 10. O-O {[%emt 0:06:29]} O-O {[%emt 0:00:22]} 11. a4 {[%emt 0:10:17]} d6 {[%emt 0:00:50]} 12. Be3 {[%emt 0:06:41]} Qa5 {[%emt 0:02:36]} 13. f4 {[%emt 0:16:52]} f5 {[%emt 0:09:31]} 14. Qc4+ {[%emt 0:01:55]} Kh8 {[%emt 0:00:08]} 15. b4 {[%emt 0:03:08]} Qd8 {[%emt 0:04:09]} 16. b5 {[%emt 0:04:38]} Qe8 {[%emt 0:03:19]} 17. bxc6 {[%emt 0:11:50]} bxc6 {[%emt 0:00:17]} 18. e5 {[%emt 0:04:33]} dxe5 {[%emt 0:03:33]} 19. fxe5 {[%emt 0:04:11]} Nxe5 {[%emt 0:00:17]} 20. Qf4 {[%emt 0:02:32]} Ng6 {[%emt 0:07:50]} 21. Qc4 {[%emt 0:01:17]} a5 {[%emt 0:05:32]} 22. Rfe1 {[%emt 0:10:00]} Bb4 {[%emt 0:06:06]} 23. Bd4 {[%emt 0:03:36]} Be6 {[%emt 0:04:29]} 24. Qd3 {[%emt 0:00:54]} Rd8 {[%emt 0:00:31]} 25. Qe3 {[%emt 0:01:11]} f4 {[%emt 0:00:34]} 26. Qf2 {[%emt 0:00:29]} c5 {[%emt 0:08:48]} 27. Bg4 {[%emt 0:01:12]} Bxg4 {[%emt 0:01:58]} 28. Rxe8 {[%emt 0:00:50]} Rfxe8 {[%emt 0:00:08]} 29. h3 {[%emt 0:00:52]} Bh5 {[%emt 0:00:36]} 30. g4 {[%emt 0:01:32]} fxg3 {[%emt 0:02:08]} 31. Qf5 {[%emt 0:00:20]} cxd4 {[%emt 0:03:30]} 32. Qxh5 {[%emt 0:00:35]} dxc3 {[%emt 0:04:32]} 33. Qb5 {[%emt 0:00:25]} Re5 {[%emt 0:01:06]} 34. Qb6 {[%emt 0:00:07]} Bc5+ {[%emt 0:00:08]} 0-1